Workbook

Sheet титульный

Sheet Лист1 (hidden)

Sheet Лист2 (hidden)

Sheet Задача 1
A1: ЗАДАЧА 1
A2: Число оборотов двигателя y функционально зависит от температуры x. Вычислить число оборотов двигателя y(x) при температуре a и b. Построить график этой функциональной зависимости на интервале [a,b] с шагом 0,05l; l – длина отрезка [a,b].
A3: № варианта | B3: y(x) | C3: a | D3: b
A4: 5 | C4: -1.976 | D4: 2.052
A7: Решение
A8: x | B8: y | C8: Функциональная зависимость
A9: -1.976 | B9: =IF(ABS(A9)>1,0,0.75*A9+(SIN(A9)/(A9^2-4))) -> 0
A10: -1.7746 | B10: 0
A11: -1.5732 | B11: 0
A12: -1.3718 | B12: 0
A13: -1.1704 | B13: 0
A14: -0.969 | B14: =IF(ABS(A14)>1,0,0.75*A14+(SIN(A14)/(A14^2-4))) -> -0.4574558154
A15: -0.7676 | B15: =IF(ABS(A15)>1,0,0.75*A15+(SIN(A15)/(A15^2-4))) -> -0.3721078114
A16: -0.5662 | B16: -0.2788581925
A17: -0.3648 | B17: -0.1813399134
A18: -0.1634 | B18: -0.08160825534
A19: 0.038 | B19: 0.01899885626
A20: 0.2394 | B20: 0.1194083397
A21: 0.4408 | B21: 0.2184882597
A22: 0.6422 | B22: 0.3146965814
A23: 0.8436 | B23: 0.4055211274
A24: 1.045 | B24: 0
A25: 1.2464 | B25: 0
A26: 1.4478 | B26: 0
A27: 1.6492 | B27: 0
A28: 1.8506 | B28: 0
A29: 2.052 | B29: 0

Sheet Задача 2
A1: Задача №2
A2: Число оборотов f, как и в предыдущей задаче функционально зависит от температуры x. Требуется найти температуру, при которой число оборотов равно нулю, то есть найти все корни уравнения f(x)=0 на отрезке локализации [-3;2] с точностью 0,0001.
A3: № варианта | B3: Уравнение | C3: Отрезок локализации | D3: Точность
A4: 3 | C4: [-4; 4] | D4: 0.0001
A5: -4 | B5: =A5^3-3*A5^2-4*A5+1 -> -95
A6: -3.6 | B6: =A6^3-3*A6^2-4*A6+1 -> -70.136
A7: -3.2 | B7: -49.688
A8: -2.8 | B8: -33.272
A9: -2.4 | B9: -20.504
A10: -2 | B10: -11
A11: -1.6 | B11: -4.376
A12: -1.165984095 | B12: 0.0002022227984
A13: -0.4 | B13: 2.056
A14: 0 | B14: 1
A15: 0.2171607737 | B15: 0.0001215422496
A16: 0.8 | B16: -3.608
A17: 1.2 | B17: -6.392
A18: 1.6 | B18: -8.984
A19: 2 | B19: -11
A20: 2.4 | B20: -12.056
A21: 2.8 | B21: -11.768
A22: 3.5 | B22: -6.875
A23: 3.6 | B23: -5.624
A24: 3.948838702 | B24: =A24^3-3*A24^2-4*A24+1 -> 0.0001974369575
A25: 4 | B25: 1

Sheet Задача 3
A1: Задача №3
A2: Построить таблицу значений функции z(x,y) и ее отображение в виде поверхности на области (x,y)є[-1..1,-1..1] с шагом 0,1 по каждому направлению.
A4: 3
A5: Решение
C6: Ось Ox
C7: -1 | D7: -0.9 | E7: -0.8 | F7: -0.7 | G7: -0.6 | H7: -0.5 | I7: -0.4 | J7: -0.3 | K7: -0.2 | L7: -0.1 | M7: 0 | N7: 0.1 | O7: 0.2 | P7: 0.3 | Q7: 0.4 | R7: 0.5 | S7: 0.6 | T7: 0.7 | U7: 0.8 | V7: 0.9 | W7: 1
A8: Ось Oy | B8: -1 | C8: =IF($B8>0,C$7^2+2*SIN(3.14*$B8),C$7^2-C$7*$B8* 2.7182818284^ABS($B8+0.5)) -> -0.6487212707 | D8: =IF($B8>0,D$7^2+2*SIN(3.14*$B8),D$7^2-D$7*$B8* 2.7182818284^ABS($B8+0.5)) -> -0.6738491436 | E8: -0.6789770165 | F8: -0.6641048895 | G8: -0.6292327624 | H8: -0.5743606353 | I8: -0.4994885083 | J8: -0.4046163812 | K8: -0.2897442541 | L8: -0.1548721271 | M8: 0 | N8: 0.1748721271 | O8: 0.3697442541 | P8: 0.5846163812 | Q8: 0.8194885083 | R8: 1.074360635 | S8: 1.349232762 | T8: 1.644104889 | U8: =IF($B8>0,U$7^2+2*SIN(3.14*$B8),U$7^2-U$7*$B8* 2.7182818284^ABS($B8+0.5)) -> 1.958977017 | V8: 2.293849144 | W8: 2.648721271
B9: -0.9 | C9: =IF($B9>0,C$7^2+2*SIN(3.14*$B9),C$7^2-C$7*$B9* 2.7182818284^ABS($B9+0.5)) -> -0.3426422279 | D9: -0.3983780051 | E9: -0.4341137823 | F9: -0.4498495595 | G9: -0.4455853367 | H9: -0.4213211139 | I9: -0.3770568911 | J9: -0.3127926684 | K9: -0.2285284456 | L9: -0.1242642228 | M9: 0 | N9: 0.1442642228 | O9: 0.3085284456 | P9: 0.4927926684 | Q9: 0.6970568911 | R9: 0.9213211139 | S9: 1.165585337 | T9: =IF($B9>0,T$7^2+2*SIN(3.14*$B9),T$7^2-T$7*$B9* 2.7182818284^ABS($B9+0.5)) -> 1.42984956 | U9: 1.714113782 | V9: 2.018378005 | W9: 2.342642228
B10: -0.8 | C10: -0.07988704605 | D10: -0.1618983414 | E10: -0.2239096368 | F10: -0.2659209322 | G10: -0.2879322276 | H10: -0.289943523 | I10: -0.2719548184 | J10: -0.2339661138 | K10: -0.1759774092 | L10: -0.09798870461 | M10: 0 | N10: 0.1179887046 | O10: 0.2559774092 | P10: 0.4139661138 | Q10: 0.5919548184 | R10: 0.789943523 | S10: 1.007932228 | T10: 1.245920932 | U10: 1.503909637 | V10: 1.781898341 | W10: 2.079887046
B11: -0.7 | C11: 0.1450180693 | D11: 0.04051626236 | E11: -0.04398554457 | F11: -0.1084873515 | G11: -0.1529891584 | H11: -0.1774909654 | I11: -0.1819927723 | J11: -0.1664945792 | K11: -0.1309963861 | L11: -0.07549819307 | M11: 0 | N11: 0.09549819307 | O11: 0.2109963861 | P11: 0.3464945792 | Q11: 0.5019927723 | R11: 0.6774909654 | S11: 0.8729891584 | T11: 1.088487351 | U11: 1.323985545 | V11: 1.579483738 | W11: 1.854981931
B12: -0.6 | C12: 0.3368974492 | D12: 0.2132077042 | E12: 0.1095179593 | F12: 0.02582821441 | G12: -0.03786153051 | H12: -0.08155127542 | I12: -0.1052410203 | J12: -0.1089307653 | K12: -0.09262051017 | L12: -0.05631025508 | M12: 0 | N12: 0.07631025508 | O12: 0.1726205102 | P12: 0.2889307653 | Q12: 0.4252410203 | R12: 0.5815512754 | S12: 0.7578615305 | T12: 0.9541717856 | U12: 1.170482041 | V12: 1.406792296 | W12: 1.663102551
B13: -0.5 | C13: 0.5 | D13: 0.36 | E13: 0.24 | F13: 0.14 | G13: 0.06 | H13: 0 | I13: -0.04 | J13: -0.06 | K13: -0.06 | L13: -0.04 | M13: 0 | N13: 0.06 | O13: 0.14 | P13: 0.24 | Q13: 0.36 | R13: 0.5 | S13: 0.66 | T13: 0.84 | U13: 1.04 | V13: 1.26 | W13: 1.5
B14: -0.4 | C14: 0.5579316328 | D14: 0.4121384695 | E14: 0.2863453062 | F14: 0.1805521429 | G14: 0.09475897966 | H14: 0.02896581639 | I14: -0.01682734689 | J14: -0.04262051017 | K14: -0.04841367345 | L14: -0.03420683672 | M14: 0 | N14: 0.05420683672 | O14: 0.1284136734 | P14: 0.2226205102 | Q14: 0.3368273469 | R14: 0.4710341836 | S14: 0.6252410203 | T14: 0.7994478571 | U14: 0.9936546938 | V14: 1.207861531 | W14: 1.442068367
B15: -0.3 | C15: 0.6335791726 | D15: 0.4802212553 | E15: 0.346863338 | F15: 0.2335054208 | G15: 0.1401475035 | H15: 0.06678958628 | I15: 0.01343166902 | J15: -0.01992624823 | K15: -0.03328416549 | L15: -0.02664208274 | M15: 0 | N15: 0.04664208274 | O15: 0.1132841655 | P15: 0.1999262482 | Q15: 0.306568331 | R15: 0.4332104137 | S15: 0.5798524965 | T15: 0.7464945792 | U15: 0.933136662 | V15: 1.139778745 | W15: 1.366420827
B16: -0.2 | C16: 0.7300282385 | D16: 0.5670254146 | E16: 0.4240225908 | F16: 0.3010197669 | G16: 0.1980169431 | H16: 0.1150141192 | I16: 0.05201129539 | J16: 0.009008471546 | K16: -0.0139943523 | L16: -0.01699717615 | M16: 0 | N16: 0.03699717615 | O16: 0.0939943523 | P16: 0.1709915285 | Q16: 0.2679887046 | R16: 0.3849858808 | S16: 0.5219830569 | T16: 0.6789802331 | U16: 0.8559774092 | V16: 1.052974585 | W16: 1.269971762
B17: -0.1 | C17: 0.8508175302 | D17: 0.6757357772 | E17: 0.5206540242 | F17: 0.3855722712 | G17: 0.2704905181 | H17: 0.1754087651 | I17: 0.1003270121 | J17: 0.04524525907 | K17: 0.01016350605 | L17: -0.004918246976 | M17: 0 | N17: 0.02491824698 | O17: 0.06983649395 | P17: 0.1347547409 | Q17: 0.2196729879 | R17: 0.3245912349 | S17: 0.4495094819 | T17: 0.5944277288 | U17: 0.7593459758 | V17: 0.9442642228 | W17: 1.14918247
B18: 0 | C18: 1 | D18: 0.81 | E18: 0.64 | F18: 0.49 | G18: 0.36 | H18: 0.25 | I18: 0.16 | J18: 0.09 | K18: 0.04 | L18: 0.01 | M18: 0 | N18: 0.01 | O18: 0.04 | P18: 0.09 | Q18: 0.16 | R18: 0.25 | S18: =IF($B18>0,S$7^2+2*SIN(3.14*$B18),S$7^2-S$7*$B18* 2.7182818284^ABS($B18+0.5)) -> 0.36 | T18: 0.49 | U18: 0.64 | V18: 0.81 | W18: 1
B19: 0.1 | C19: 1.61773104 | D19: 1.42773104 | E19: 1.25773104 | F19: 1.10773104 | G19: 0.9777310402 | H19: 0.8677310402 | I19: 0.7777310402 | J19: 0.7077310402 | K19: 0.6577310402 | L19: 0.6277310402 | M19: 0.6177310402 | N19: 0.6277310402 | O19: 0.6577310402 | P19: 0.7077310402 | Q19: 0.7777310402 | R19: 0.8677310402 | S19: 0.9777310402 | T19: 1.10773104 | U19: 1.25773104 | V19: 1.42773104 | W19: 1.61773104
B20: 0.2 | C20: 2.175055051 | D20: 1.985055051 | E20: 1.815055051 | F20: 1.665055051 | G20: 1.535055051 | H20: 1.425055051 | I20: 1.335055051 | J20: 1.265055051 | K20: 1.215055051 | L20: 1.185055051 | M20: 1.175055051 | N20: 1.185055051 | O20: 1.215055051 | P20: 1.265055051 | Q20: 1.335055051 | R20: 1.425055051 | S20: 1.535055051 | T20: 1.665055051 | U20: 1.815055051 | V20: 1.985055051 | W20: 2.175055051
B21: 0.3 | C21: 2.617472121 | D21: 2.427472121 | E21: 2.257472121 | F21: 2.107472121 | G21: 1.977472121 | H21: 1.867472121 | I21: 1.777472121 | J21: 1.707472121 | K21: 1.657472121 | L21: 1.627472121 | M21: 1.617472121 | N21: 1.627472121 | O21: 1.657472121 | P21: 1.707472121 | Q21: 1.777472121 | R21: 1.867472121 | S21: 1.977472121 | T21: 2.107472121 | U21: 2.257472121 | V21: 2.427472121 | W21: 2.617472121
B22: 0.4 | C22: 2.901718921 | D22: 2.711718921 | E22: 2.541718921 | F22: 2.391718921 | G22: 2.261718921 | H22: 2.151718921 | I22: 2.061718921 | J22: 1.991718921 | K22: 1.941718921 | L22: 1.911718921 | M22: 1.901718921 | N22: 1.911718921 | O22: 1.941718921 | P22: 1.991718921 | Q22: 2.061718921 | R22: 2.151718921 | S22: 2.261718921 | T22: 2.391718921 | U22: 2.541718921 | V22: 2.711718921 | W22: 2.901718921
B23: 0.5 | C23: 2.999999366 | D23: 2.809999366 | E23: 2.639999366 | F23: 2.489999366 | G23: 2.359999366 | H23: 2.249999366 | I23: 2.159999366 | J23: 2.089999366 | K23: 2.039999366 | L23: 2.009999366 | M23: 1.999999366 | N23: 2.009999366 | O23: 2.039999366 | P23: 2.089999366 | Q23: 2.159999366 | R23: 2.249999366 | S23: 2.359999366 | T23: 2.489999366 | U23: 2.639999366 | V23: 2.809999366 | W23: 2.999999366
B24: 0.6 | C24: 2.902702752 | D24: =IF($B24>0,D$7^2+2*SIN(3.14*$B24),D$7^2-D$7*$B24* 2.7182818284^ABS($B24+0.5)) -> 2.712702752 | E24: 2.542702752 | F24: 2.392702752 | G24: 2.262702752 | H24: 2.152702752 | I24: 2.062702752 | J24: 1.992702752 | K24: 1.942702752 | L24: 1.912702752 | M24: 1.902702752 | N24: 1.912702752 | O24: 1.942702752 | P24: 1.992702752 | Q24: 2.062702752 | R24: 2.152702752 | S24: 2.262702752 | T24: 2.392702752 | U24: 2.542702752 | V24: 2.712702752 | W24: 2.902702752
B25: 0.7 | C25: 2.619343577 | D25: 2.429343577 | E25: 2.259343577 | F25: 2.109343577 | G25: 1.979343577 | H25: 1.869343577 | I25: 1.779343577 | J25: 1.709343577 | K25: 1.659343577 | L25: 1.629343577 | M25: 1.619343577 | N25: 1.629343577 | O25: 1.659343577 | P25: 1.709343577 | Q25: 1.779343577 | R25: 1.869343577 | S25: 1.979343577 | T25: 2.109343577 | U25: 2.259343577 | V25: 2.429343577 | W25: 2.619343577
B26: 0.8 | C26: 2.177631124 | D26: 1.987631124 | E26: 1.817631124 | F26: 1.667631124 | G26: 1.537631124 | H26: 1.427631124 | I26: 1.337631124 | J26: 1.267631124 | K26: 1.217631124 | L26: 1.187631124 | M26: 1.177631124 | N26: 1.187631124 | O26: 1.217631124 | P26: 1.267631124 | Q26: 1.337631124 | R26: 1.427631124 | S26: 1.537631124 | T26: 1.667631124 | U26: 1.817631124 | V26: 1.987631124 | W26: 2.177631124
B27: 0.9 | C27: 1.620759819 | D27: 1.430759819 | E27: 1.260759819 | F27: 1.110759819 | G27: 0.9807598193 | H27: 0.8707598193 | I27: 0.7807598193 | J27: 0.7107598193 | K27: 0.6607598193 | L27: 0.6307598193 | M27: 0.6207598193 | N27: 0.6307598193 | O27: 0.6607598193 | P27: 0.7107598193 | Q27: 0.7807598193 | R27: 0.8707598193 | S27: 0.9807598193 | T27: 1.110759819 | U27: 1.260759819 | V27: 1.430759819 | W27: 1.620759819
B28: 1 | C28: 1.003185306 | D28: 0.8131853058 | E28: 0.6431853058 | F28: 0.4931853058 | G28: 0.3631853058 | H28: 0.2531853058 | I28: 0.1631853058 | J28: 0.09318530583 | K28: 0.04318530583 | L28: 0.01318530583 | M28: 0.003185305833 | N28: 0.01318530583 | O28: 0.04318530583 | P28: 0.09318530583 | Q28: 0.1631853058 | R28: 0.2531853058 | S28: 0.3631853058 | T28: 0.4931853058 | U28: 0.6431853058 | V28: 0.8131853058 | W28: 1.003185306
